lending/lending_fUSD_20240806
["ID","MTS","AMOUNT","RATE_DAILY","PERIOD"]
[334302631,1722929433633,-150.0,0.00010655,2]
[334302632,1722929433643,-115.36358742,0.00010658,2]
[334302652,1722929437504,-34.63641258,0.00010658,2]
[334302653,1722929437515,-150.0,0.00010663,2]
[334302654,1722929437524,-130.68876305,0.00010663,2]
[334302655,1722929437693,-19.31123695,0.00010663,2]
[334302656,1722929437702,-150.0,0.00010669,2]
[334302657,1722929437713,-150.0,0.0001067,2]
[334302658,1722929437723,-150.0,0.00010675,2]
[334302659,1722929437733,-426.02,0.00010678,2]
[334302660,1722929437743,-150.0,0.00010683,2]
[334302661,1722929437752,-150.0,0.00010683,2]
[334302662,1722929437762,-150.0,0.00010683,2]
[334302663,1722929437771,-150.0,0.00010685,2]
[334302664,1722929437780,-150.0,0.00010689,2]
[334302665,1722929437790,-24.72633943,0.00010695,2]
[334302666,1722929437802,-125.27366057,0.00010695,2]
[334302667,1722929437813,-150.0,0.00010697,2]
[334302668,1722929437823,-150.0,0.00010697,2]
[334302669,1722929437834,-300.0,0.00010697,2]
[334302670,1722929437844,-150.0,0.00010697,2]
[334302671,1722929437854,-150.0,0.00010699,2]
[334302672,1722929437864,-150.0,0.00010701,2]
[334302673,1722929437875,-150.0,0.00010703,2]
[334302674,1722929437884,-150.0,0.00010707,2]
[334302675,1722929437894,-150.0,0.00010709,2]
[334302676,1722929437904,-150.0,0.00010709,2]
[334302677,1722929437913,-150.0,0.00010713,2]
[334302678,1722929437925,-150.0,0.00010717,2]
[334302679,1722929437934,-150.0,0.00010721,2]
[334302680,1722929437944,-150.0,0.00010723,2]
[334302681,1722929437956,-150.0,0.00010729,2]
[334302682,1722929437966,-150.0,0.00010735,2]
[334302715,1722929438309,-1500.0,0.00010744,2]
[334302719,1722929438339,-150.0,0.00010746,2]
[334302721,1722929438350,-150.0,0.0001075,2]
[334302724,1722929438360,-150.0,0.00010753,2]
[334302726,1722929438369,-168.96479876,0.00010754,2]
[334302728,1722929438378,-1516.74533243,0.00010754,2]
[334302730,1722929438389,-150.0,0.00010756,2]
[334302732,1722929438401,-1500.0,0.00010765,2]
[334302734,1722929438411,-150.0,0.00010772,2]
[334302736,1722929438424,-150.0,0.00010775,2]
[334302738,1722929438434,-1500.0,0.00010783,2]
[334302740,1722929438444,-150.0,0.00010785,2]
[334302742,1722929438456,-150.0,0.00010785,2]
[334302744,1722929438466,-150.0,0.00010786,2]
[334302746,1722929438476,-150.0,0.00010791,2]
[334302748,1722929438487,-151.08852123,0.00010792,2]
[334302750,1722929438496,-150.0,0.00010798,2]
[334302752,1722929438506,-10623.54126588,0.000108,2]
[334302754,1722929438516,-150.0,0.00010817,2]
[334302756,1722929438525,-150.0,0.0001082,2]
[334302758,1722929438535,-150.0,0.00010834,2]
[334302760,1722929438545,-150.0,0.00010835,2]
[334302762,1722929438555,-150.0,0.00010839,2]
[334302764,1722929438565,-150.0,0.00010842,2]
[334302766,1722929438575,-150.0,0.00010853,2]
[334302768,1722929438585,-150.0,0.00010856,2]
[334302770,1722929438594,-150.0,0.00010857,2]
[334302772,1722929438604,-834.63139002,0.00010858,2]
[334302774,1722929438614,-150.0,0.0001086,2]
[334302776,1722929438624,-150.0,0.00010867,2]
[334302779,1722929438635,-150.0,0.00010876,2]
[334302781,1722929438645,-3961.25503109,0.0001088,2]
[334302783,1722929438663,-12116.98523414,0.0001088,2]
[334302785,1722929438674,-1184.3610947,0.00010883,2]
[334302788,1722929438687,-315.6389053,0.00010883,2]
[334302790,1722929438698,-150.0,0.00010885,2]
[334302792,1722929438717,-150.0,0.00010891,2]
[334302794,1722929438728,-150.0,0.00010894,2]
[334302796,1722929438738,-6561.623372,0.000109,2]
[334302798,1722929438751,-2828.0477227,0.000109,2]
[334302800,1722929438764,-2515.9382773,0.000109,2]
[334302802,1722929438775,-170.06352409,0.000109,2]
[334302804,1722929438786,-152.33873076,0.000109,2]
[334302806,1722929438798,-184.90563545,0.000109,2]
[334302808,1722929438808,-1076.78674586,0.000109,2]
[334302810,1722929438819,-165.072112,0.000109,2]
[334302812,1722929438830,-1441.91594211,0.000109,2]
[334302814,1722929438841,-150.0,0.00010906,2]
[334302817,1722929438855,-150.0,0.00010908,2]
[334302819,1722929438865,-150.0,0.00010918,2]
[334302821,1722929438876,-150.0,0.00010941,2]
[334302823,1722929438886,-150.0,0.00010948,2]
[334302825,1722929438896,-499.99,0.00010953,2]
[334302827,1722929438906,-150.0,0.00010957,2]
[334302829,1722929438917,-500.0,0.00010958,2]
[334302831,1722929438927,-500.0,0.00010958,2]
[334302833,1722929438937,-500.0,0.00010958,2]
[334302835,1722929438947,-500.0,0.00010958,2]
[334302837,1722929438964,-500.0,0.00010958,2]
[334302839,1722929438975,-500.0,0.00010958,2]
[334302840,1722929438985,-500.0,0.00010958,2]
[334302842,1722929438995,-500.0,0.00010958,2]
[334302845,1722929439006,-500.0,0.00010958,2]
[334302846,1722929439016,-500.0,0.00010958,2]
[334302848,1722929439027,-500.0,0.00010958,2]
[334302851,1722929439037,-500.0,0.00010958,2]
[334302853,1722929439047,-500.0,0.00010958,2]
[334302854,1722929439058,-500.0,0.00010958,2]
[334302858,1722929439081,-500.0,0.00010958,2]
[334302860,1722929439092,-500.0,0.00010958,2]
[334302862,1722929439102,-500.0,0.00010958,2]
[334302864,1722929439112,-166.06304928,0.00010958,2]
[334302927,1722929440101,-333.93695072,0.00010958,2]
[334302929,1722929440114,-500.0,0.00010958,2]
[334302932,1722929440126,-500.0,0.00010958,2]
[334302936,1722929440138,-500.0,0.00010958,2]
[334302938,1722929440150,-500.0,0.00010958,2]
[334302940,1722929440162,-500.0,0.00010958,2]
[334302942,1722929440173,-429.15096665,0.00010958,2]
[334302944,1722929440184,-250.0,0.00010959,2]
[334302946,1722929440195,-188.75297818,0.00010999,2]
[334302948,1722929440213,-243.26625753,0.00010999,2]
[334302949,1722929440224,-16319.97935092,0.00011,2]
[334302950,1722929440364,-980.25975012,0.00011,2]
[334302951,1722929440378,-119835.7797464,0.00011,2]
[334302952,1722929440392,-172419.67626906,0.00011,2]
[334302953,1722929440409,-326322.99106444,0.00011,2]
[334302954,1722929440423,-559.22720896,0.00011,2]
[334302974,1722929443045,-2925.0,0.00011,2]
[334302975,1722929443195,-4769.26480063,0.00011,2]
[334302976,1722929443208,-1888.0000005,0.00011,2]
[334302985,1722929445305,-2759.5004898,0.00011,2]
[334302986,1722929445317,-96249.65283404,0.00011,2]
[334302987,1722929445336,-2568.01660738,0.00011,2]
[334302988,1722929445347,-500.0,0.00011,2]
[334302989,1722929445358,-337.27249606,0.00011,2]
[334302990,1722929445369,-801.46196804,0.00011,2]
[334302991,1722929445380,-2279.0,0.00011,2]
[334302993,1722929445392,-500.0,0.00011,2]
[334302994,1722929445433,-4063.59449961,0.00011,2]
[334302995,1722929445445,-537.16417105,0.00011,2]
[334302996,1722929446850,-151.66195,0.00010848,2]
[334302997,1722929446861,-341.58466063,0.00011,2]
[334302998,1722929446873,-400.57,0.00011,2]
[334302999,1722929446884,-27493.91517875,0.00011,2]
[334303000,1722929446896,-852.18109769,0.00011,2]
[334303001,1722929446907,-519.94092033,0.00011,2]
[334303002,1722929446919,-768.0,0.00011,2]
[334303003,1722929446930,-3806.86725448,0.00011,2]
[334303004,1722929446942,-1647.40367444,0.00011,2]
[334303005,1722929446953,-18687.90820847,0.00011,2]
[334303006,1722929446968,-26977.16239601,0.00011,2]
[334303007,1722929446979,-2251.39048209,0.00011,2]
[334303008,1722929446991,-29000.0,0.00011,2]
[334303009,1722929447002,-3075.0,0.00011,2]
[334303010,1722929447014,-592.714,0.00011,2]
[334303011,1722929447025,-584.82021014,0.00011,2]
[334303012,1722929447037,-670.56,0.00011,2]
[334303013,1722929447050,-3823.05,0.00011,2]
[334303014,1722929447062,-456.95008335,0.00011,2]
[334303015,1722929447073,-585.22668101,0.00011,2]
[334303016,1722929447093,-1346.51356479,0.00011,2]
[334303017,1722929447104,-305.0,0.00011,2]
[334303018,1722929447121,-442.00189353,0.00011,2]
[334303019,1722929447132,-515.83635347,0.00011,2]
[334303020,1722929447143,-451.23409272,0.00011,2]
[334303021,1722929447166,-929.49487417,0.00011,2]
[334303036,1722929846766,989.18,8.219e-05,2]
[334303039,1722930043617,200.2684437,8.178e-05,2]
[334303040,1722930206560,500.0,0.00024932,120]
[334303041,1722930211184,-600.03,9.832e-05,2]
[334303042,1722930211214,-300.0,9.877e-05,2]
[334303043,1722930211245,-300.0,9.877e-05,2]
[334303044,1722930211277,-20156.57,9.878e-05,2]
[334303045,1722930211308,-118.4,9.912e-05,2]
[334303046,1722930221116,-31.6,9.912e-05,2]
[334303047,1722930221141,-169.71,9.958e-05,2]
[334303048,1722930221167,-250.0,9.973e-05,2]
[334303049,1722930221193,-33099.84429128,0.0001,2]
[334303050,1722930223121,14448.84570872,9.912e-05,2]
[334303051,1722930278205,-5300.0,9.912e-05,2]
[334303052,1722930283427,500.0,0.00025,60]
[334303053,1722930301444,500.0,0.00025,60]
[334303054,1722930389752,939.72,8.219e-05,2]
[334303232,1722930631593,-3078.55932045,9.836e-05,2]
[334303234,1722930631609,-20821.44067955,9.836e-05,2]
[334303236,1722930631622,-500.0,9.847e-05,2]
[334303237,1722930631635,-250.0,9.85e-05,2]
[334303238,1722930631649,-200.0,9.854e-05,2]
[334303239,1722930631661,-157.03748266,0.00010096,2]
[334303240,1722930631674,-326.39,0.00010196,2]
[334303241,1722930631688,-193.95,0.00010345,2]
[334303242,1722930631700,-179.19,0.00010391,2]
[334303243,1722930631713,-939.72,0.00010468,2]
[334303244,1722930631726,-399.97,0.00010487,2]
[334303245,1722930631739,-823.63,0.00010487,2]
[334303246,1722930631752,-300.0,0.00010498,2]
[334303247,1722930631764,-1801.86,0.00010499,2]
[334303248,1722930631777,-179.06,0.00010499,2]
[334303249,1722930631792,-606.64,0.00010499,2]
[334303250,1722930631805,-3057.49,0.00010499,2]
[334303251,1722930631819,-2519.72,0.00010499,2]
[334303252,1722930631833,-375.0,0.0001072,2]
[334303253,1722930631847,-633.03266898,0.00010721,2]
[334303254,1722930631860,-150.0,0.00010726,2]
[334303256,1722930631879,-2543.33,0.00010726,2]
[334303259,1722930631892,-150.0,0.00010727,2]
[334303261,1722930631905,-150.0,0.00010727,2]
[334303263,1722930631918,-1500.0,0.00010733,2]
[334303267,1722930631931,-150.0,0.00010735,2]
[334303269,1722930631944,-150.0,0.00010737,2]
[334303272,1722930631957,-150.0,0.00010742,2]
[334303274,1722930631970,-150.0,0.00010743,2]
[334303276,1722930631983,-207.30935474,0.00010749,2]
[334303279,1722930631996,-150.0,0.00010749,2]
[334303281,1722930632009,-150.0,0.00010751,2]
[334303282,1722930632023,-150.0,0.00010753,2]
[334303283,1722930632036,-150.0,0.00010753,2]
[334303284,1722930632050,-150.0,0.00010754,2]
[334303285,1722930632063,-150.0,0.00010757,2]
[334303286,1722930632075,-150.0,0.0001076,2]
[334303287,1722930632088,-150.0,0.00010761,2]
[334303288,1722930632102,-150.0,0.00010762,2]
[334303289,1722930632115,-150.0,0.00010767,2]
[334303290,1722930632128,-150.0,0.00010767,2]
[334303291,1722930632141,-150.0,0.00010768,2]
[334303292,1722930632153,-150.0,0.00010768,2]
[334303293,1722930632166,-150.0,0.0001077,2]
[334303294,1722930632180,-150.0,0.00010771,2]
[334303295,1722930632194,-150.0,0.00010778,2]
[334303296,1722930632208,-150.0,0.00010778,2]
[334303297,1722930632221,-150.0,0.00010783,2]
[334303298,1722930632234,-150.0,0.00010783,2]
[334303299,1722930632249,-150.0,0.00010784,2]
[334303300,1722930632261,-150.0,0.00010785,2]
[334303301,1722930632275,-150.0,0.00010785,2]
[334303302,1722930632289,-1500.0,0.0001079,2]
[334303303,1722930632304,-150.0,0.0001079,2]
[334303304,1722930632318,-150.0,0.0001079,2]
[334303305,1722930632332,-150.0,0.00010792,2]
[334303306,1722930632344,-2004.97797868,0.000108,7]
[334303307,1722930632357,-20976.4934,0.000108,2]
[334303308,1722930632369,-150.0,0.00010801,2]
[334303309,1722930632383,-150.0,0.00010805,2]
[334303310,1722930632395,-150.0,0.00010808,2]
[334303311,1722930632407,-150.0,0.00010809,2]
[334303312,1722930632420,-1500.0,0.00010825,2]
[334303313,1722930632434,-150.0,0.00010827,2]
[334303314,1722930632447,-150.0,0.00010828,2]
[334303315,1722930632460,-1500.0,0.00010833,2]
[334303316,1722930632473,-242.90877967,0.00010838,2]
[334303317,1722930632486,-1500.0,0.00010839,2]
[334303318,1722930632499,-150.0,0.00010839,2]
[334303319,1722930632512,-150.0,0.0001084,2]
[334303320,1722930632526,-150.0,0.0001084,2]
[334303321,1722930632539,-150.0,0.00010844,2]
[334303322,1722930632552,-150.0,0.00010845,2]
[334303323,1722930632565,-150.0,0.00010851,2]
[334303324,1722930632578,-150.0,0.00010857,2]
[334303325,1722930632589,-150.0,0.00010858,2]
[334303326,1722930632602,-150.0,0.00010859,2]
[334303327,1722930632615,-1500.0,0.00010861,2]
[334303328,1722930632627,-150.0,0.00010863,2]
[334303329,1722930632640,-150.0,0.00010864,2]
[334303330,1722930632653,-1500.0,0.00010868,2]
[334303331,1722930632666,-150.0,0.00010868,2]
[334303332,1722930632678,-150.0,0.00010873,2]
[334303333,1722930632691,-1500.0,0.00010881,2]
[334303334,1722930632703,-150.0,0.00010881,2]
[334303335,1722930632716,-1500.0,0.00010882,2]
[334303336,1722930632728,-150.0,0.00010882,2]
[334303337,1722930632740,-1500.0,0.00010884,2]
[334303338,1722930632754,-150.0,0.00010886,2]
[334303339,1722930632766,-150.0,0.00010886,2]
[334303340,1722930632779,-1500.0,0.00010887,2]
[334303341,1722930632793,-1500.0,0.0001089,2]
[334303342,1722930632806,-150.0,0.00010892,2]
[334303343,1722930632818,-150.0,0.00010894,2]
[334303344,1722930632832,-1500.0,0.00010895,2]
[334303345,1722930632845,-150.0,0.00010895,2]
[334303346,1722930632858,-9141.1613,0.00010897,2]
[334303347,1722930632874,-150.0,0.00010897,2]
[334303348,1722930632887,-150.0,0.00010897,2]
[334303349,1722930632900,-1500.0,0.00010898,2]
[334303350,1722930632913,-150.0,0.00010898,2]
[334303351,1722930632926,-40841.82986251,0.00010899,2]
[334303352,1722930632939,-170.31455937,0.000109,2]
[334303353,1722930632951,-3355.46747145,0.000109,2]
[334303354,1722930632969,-26931.28652855,0.000109,2]
[334303355,1722930632981,-283.914,0.000109,2]
[334303356,1722930632994,-945.8473,0.000109,2]
[334303357,1722930633007,-471.90589686,0.000109,2]
[334303358,1722930633020,-184.90563545,0.000109,2]
[334303359,1722930633033,-325.78051198,0.000109,2]
[334303360,1722930633047,-1672.27542584,0.000109,2]
[334303361,1722930633060,-1261.67644932,0.000109,2]
[334303362,1722930633073,-8824.9728987,0.000109,2]
[334303363,1722930633087,-150.0,0.00010902,2]
[334303364,1722930633099,-1500.0,0.00010902,2]
[334303365,1722930633112,-150.0,0.00010903,2]
[334303366,1722930633126,-150.0,0.00010904,2]
[334303367,1722930633138,-150.0,0.00010907,2]
[334303368,1722930633152,-150.0,0.00010908,2]
[334303369,1722930633165,-150.0,0.0001091,2]
[334303370,1722930633178,-150.0,0.00010912,2]
[334303371,1722930633191,-150.0,0.00010912,2]
[334303372,1722930633204,-500.0,0.00010912,2]
[334303373,1722930633217,-150.0,0.00010915,2]
[334303374,1722930633230,-150.0,0.00010916,2]
[334303375,1722930633243,-150.0,0.00010917,2]
[334303376,1722930633256,-150.0,0.00010917,2]
[334303377,1722930633269,-150.0,0.00010922,2]
[334303378,1722930633283,-150.0,0.00010922,2]
[334303379,1722930633296,-1500.0,0.00010924,2]
[334303380,1722930633309,-150.0,0.00010925,2]
[334303381,1722930633321,-150.0,0.00010925,2]
[334303382,1722930633334,-150.0,0.00010927,2]
[334303383,1722930633357,-150.0,0.00010927,2]
[334303384,1722930633370,-150.0,0.00010932,2]
[334303385,1722930633384,-150.0,0.00010933,2]
[334303386,1722930633399,-150.0,0.00010935,2]
[334303387,1722930633412,-150.0,0.00010937,2]
[334303388,1722930633425,-1360.08920782,0.00010941,2]
[334303389,1722930633438,-150.0,0.00010942,2]
[334303390,1722930633451,-150.0,0.00010943,2]
[334303391,1722930633463,-150.0,0.00010943,2]
[334303392,1722930633476,-150.0,0.00010944,2]
[334303393,1722930633488,-150.0,0.00010945,2]
[334303394,1722930633501,-150.0,0.00010945,2]
[334303395,1722930633514,-150.0,0.00010945,2]
[334303396,1722930633526,-502.3638,0.00010945,2]
[334303397,1722930633539,-150.0,0.00010947,2]
[334303398,1722930633552,-150.0,0.00010948,2]
[334303399,1722930633565,-150.0,0.00010949,2]
[334303400,1722930633578,-150.0,0.00010953,2]
[334303401,1722930633591,-1500.0,0.00010954,2]
[334303402,1722930633603,-1500.0,0.00010954,2]
[334303403,1722930633616,-150.0,0.00010954,2]
[334303404,1722930633629,-508.0,0.00010957,2]
[334303405,1722930633642,-1500.0,0.00010957,2]
[334303406,1722930633654,-150.0,0.00010957,2]
[334303407,1722930633668,-150.0,0.00010957,2]
[334303408,1722930633679,-150.0,0.00010957,2]
[334303409,1722930633692,-200.0,0.00010959,2]
[334303410,1722930633705,-250.0,0.00010959,2]
[334303411,1722930633719,-2000.0,0.00010959,2]
[334303412,1722930633732,-150.0,0.00010959,2]
[334303413,1722930633745,-150.0,0.00010959,2]
[334303414,1722930633759,-150.0,0.0001096,2]
[334303415,1722930633772,-150.0,0.00010963,2]
[334303416,1722930633788,-1500.0,0.00010964,2]
[334303417,1722930633803,-1500.0,0.00010964,2]
[334303418,1722930633816,-150.0,0.00010964,2]
[334303419,1722930633830,-150.0,0.00010965,2]
[334303420,1722930633860,-150.0,0.00010965,2]
[334303421,1722930633876,-150.0,0.00010966,2]
[334303422,1722930633891,-1500.0,0.00010966,2]
[334303423,1722930633905,-150.0,0.00010967,2]
[334303424,1722930633918,-150.0,0.00010968,2]
[334303425,1722930633932,-150.0,0.00010968,2]
[334303426,1722930633945,-300.17467026,0.00010972,2]
[334303427,1722930633959,-150.0,0.00010973,2]
[334303428,1722930633972,-150.0,0.00010973,2]
[334303429,1722930633986,-150.0,0.00010975,2]
[334303430,1722930634000,-150.0,0.0001098,2]
[334303431,1722930634014,-1500.0,0.00010983,2]
[334303432,1722930634028,-150.0,0.00010984,2]
[334303433,1722930634042,-150.0,0.00010985,2]
[334303434,1722930634057,-150.0,0.00010986,2]
[334303435,1722930634071,-150.0,0.00010986,2]
[334303436,1722930634085,-150.0,0.00010986,2]
[334303437,1722930634099,-150.0,0.00010988,2]
[334303438,1722930634113,-150.0,0.0001099,2]
[334303439,1722930634127,-155.35,0.0001099,2]
[334303440,1722930634141,-155.35,0.0001099,2]
[334303441,1722930634156,-155.35,0.0001099,2]
[334303442,1722930634170,-1500.0,0.00010991,2]
[334303443,1722930634183,-150.0,0.00010993,2]
[334303444,1722930634196,-150.0,0.00010995,2]
[334303445,1722930634210,-150.0,0.00010995,2]
[334303446,1722930634224,-11693.05854522,0.00010997,2]
[334303447,1722930634241,-36128.24280023,0.00010997,2]
[334303448,1722930634256,-11999.12159827,0.00010997,2]
[334303449,1722930634271,-10742.58746219,0.00010997,2]
[334303450,1722930634287,-5258.29094152,0.00010997,2]
[334303451,1722930634301,-210.68434848,0.00010999,2]
[334303452,1722930634314,-5950.2341632,0.00010999,2]
[334303453,1722930634326,-500.0,0.00010999,2]
[334303454,1722930634340,-626.22102015,0.00010999,2]
[334303455,1722930634371,-549.80031187,0.00010999,2]
[334303456,1722930634385,-21189.71434484,0.00011,2]
[334303457,1722930634402,-364.013,0.00011,2]
[334303458,1722930634419,-757.21613236,0.00011,2]
[334303459,1722930634436,-2962.57694208,0.00011,2]
[334303484,1722930638031,-5696.6441405,0.00011,2]
[334303486,1722930638044,-701.89106013,0.00011,2]
[334303488,1722930638056,-720.62291816,0.00011,2]
[334303490,1722930638066,-1504.79987068,0.00011,2]
[334303492,1722930638078,-689.05821815,0.00011,2]
[334303495,1722930638093,-3209.94494954,0.00011,2]
[334303497,1722930638104,-5197.57096875,0.00011,2]
[334303499,1722930638115,-4583.2606,0.00011,2]
[334303501,1722930638125,-2400.0,0.00011,2]
[334303503,1722930638136,-1242.33436057,0.00011,2]
[334303506,1722930638155,-726.22550044,0.00011,2]
[334303509,1722930638166,-1261.05,0.00011,2]
[334303593,1722930639665,-1060.86500547,0.00011,2]
[334303594,1722930640082,-496.07624443,0.00011,2]
[334303595,1722930640095,-559.86,0.00011,2]
[334303596,1722930640109,-253.94907435,0.00011,2]
[334303598,1722930640122,-328.47396994,0.00011,2]
[334303600,1722930640135,-2821188.3292885,0.00011,2]
[334303602,1722930640145,-11049.27274034,0.00011,2]
[334303604,1722930640156,-45319.6386043,0.00011,2]
[334303605,1722930640166,-748.12,0.00011,2]
[334303606,1722930640175,-765441.74694437,0.00011,2]
[334303607,1722930640185,-15151.68057799,0.00011,3]
[334303608,1722930640195,-2000.0,0.00011,2]
[334303609,1722930640205,-200.0,0.00011,2]
[334303610,1722930640214,-1000.0,0.00011,2]
[334303611,1722930640223,-1000.0,0.00011,2]
[334303612,1722930640233,-1000.0,0.00011,2]
[334303613,1722930640243,-1000.0,0.00011,2]
[334303614,1722930640253,-1000.0,0.00011,2]
[334303615,1722930640263,-1000.0,0.00011,2]
[334303616,1722930640272,-1000.0,0.00011,2]
[334303617,1722930640282,-1000.0,0.00011,2]
[334303618,1722930640293,-1000.0,0.00011,2]
[334303619,1722930640304,-1000.0,0.00011,2]
[334303620,1722930640313,-1000.0,0.00011,2]
[334303621,1722930640322,-1000.0,0.00011,2]
[334303622,1722930640332,-1000.0,0.00011,2]
[334303623,1722930640341,-1000.0,0.00011,2]
[334303624,1722930640350,-1000.0,0.00011,2]
[334303625,1722930640361,-1000.0,0.00011,2]
[334303626,1722930640370,-1000.0,0.00011,2]
[334303627,1722930640379,-1000.0,0.00011,2]
[334303628,1722930640389,-1000.0,0.00011,2]
[334303629,1722930640398,-1000.0,0.00011,2]
[334303630,1722930640408,-1000.0,0.00011,2]
[334303631,1722930640417,-1000.0,0.00011,2]
[334303632,1722930640427,-1000.0,0.00011,2]
[334303633,1722930640436,-1000.0,0.00011,2]
[334303634,1722930640446,-1000.0,0.00011,2]
[334303635,1722930640455,-1000.0,0.00011,2]
[334303636,1722930640465,-1000.0,0.00011,2]
[334303637,1722930640474,-1000.0,0.00011,2]
[334303638,1722930640484,-1000.0,0.00011,2]
[334303639,1722930640493,-1000.0,0.00011,2]
[334303640,1722930640504,-191.0,0.00011,2]
[334303641,1722930640514,-2000.0,0.00011,2]
[334303642,1722930640524,-200.0,0.00011,2]
[334303643,1722930640533,-2832.9431346,0.00011,2]
[334303644,1722930640543,-1000.0,0.00011,2]
[334303646,1722930640552,-3000.0,0.00011,2]
[334303648,1722930640562,-7554.2841982,0.00011,2]
[334303650,1722930640571,-3437.94,0.00011,2]
[334303652,1722930640581,-550.0,0.00011,2]
[334303654,1722930640595,-3078.1209477,0.00011053,2]
[334303656,1722930640604,-600.03,0.00011061,2]
[334303658,1722930640614,-155.35,0.00011095,2]
[334303660,1722930640624,-21131.05204875,0.00011105,2]
[334303662,1722930640634,-22646.83149119,0.00011105,2]
[334303664,1722930640643,-25310.66391755,0.00011105,2]
[334303666,1722930640654,-4474.82055447,0.00011105,2]
[334303668,1722930640663,-3977.76480579,0.00011105,2]
[334303670,1722930640674,-155.0,0.00011105,2]
[334303672,1722930640683,-197.03073788,0.00011105,2]
[334303674,1722930640693,-1274.96047504,0.00011105,2]
[334303676,1722930640702,-2144.87452689,0.00011105,2]
[334303678,1722930640712,-628.32182631,0.00011105,2]
[334303680,1722930640722,-155.0,0.00011105,2]
[334303682,1722930640731,-155.0,0.00011105,2]
[334303684,1722930640741,-653.31483393,0.00011105,2]
[334303686,1722930640751,-210.95829151,0.00011105,2]
[334303688,1722930640760,-155.0,0.00011105,2]
[334303690,1722930640770,-155.0,0.00011105,2]
[334303692,1722930640780,-7000.0,0.00011105,2]
[334303694,1722930640792,-493.36886107,0.00011105,2]
[334303696,1722930640801,-357.27329428,0.00011105,2]
[334303698,1722930640811,-155.0,0.00011105,2]
[334303699,1722930640821,-528.6753844,0.00011105,2]
[334303700,1722930640832,-155.0,0.00011105,2]
[334303701,1722930640842,-155.0,0.00011105,2]
[334303702,1722930640853,-155.0,0.00011105,2]
[334303703,1722930640865,-400.0,0.00011105,2]
[334303704,1722930640876,-155.0,0.00011105,2]
[334303705,1722930640886,-155.0,0.00011105,2]
[334303706,1722930640896,-202.79589338,0.00011105,2]
[334303707,1722930640906,-649.54016177,0.00011105,2]
[334303708,1722930640916,-309.13195594,0.00011105,2]
[334303709,1722930640926,-155.0,0.00011105,2]
[334303710,1722930640935,-15475.39970181,0.00011105,2]
[334303711,1722930640944,-401.12503633,0.00011105,2]
[334303712,1722930640954,-155.0,0.00011105,2]
[334303713,1722930640964,-5441.17939617,0.00011105,2]
[334303714,1722930640975,-10529.194286,0.00011105,2]
[334303715,1722930640985,-4500.82417841,0.00011105,2]
[334303716,1722930640995,-155.0,0.00011105,2]
[334303717,1722930641005,-5401.11645721,0.00011105,2]
[334303718,1722930641015,-3080.64330084,0.00011105,2]
[334303719,1722930641025,-155.0,0.00011105,2]
[334303720,1722930641035,-2839.69302548,0.00011105,2]
[334303721,1722930641045,-3119.38384377,0.00011105,2]
[334303722,1722930641055,-719.61665887,0.00011105,2]
[334303723,1722930641070,-3402.64786187,0.00011105,2]
[334303724,1722930641079,-157.32179979,0.00011105,2]